fUST/lending_fUST_20250208
["ID","MTS","AMOUNT","RATE_DAILY","PERIOD"]
[352223959,1739008235079,-500.0,0.00010958,2]
[352223960,1739008235088,-500.0,0.00010958,2]
[352223961,1739008235096,-782.47,0.00010958,2]
[352223962,1739008235105,-500.0,0.00010958,2]
[352223963,1739008235114,-500.0,0.00010958,2]
[352223964,1739008235123,-500.0,0.00010958,2]
[352223965,1739008235132,-500.0,0.00010958,2]
[352223966,1739008235141,-500.0,0.00010958,2]
[352223967,1739008235150,-479.0,0.00010958,2]
[352223968,1739008235159,-500.0,0.00010958,2]
[352223969,1739008235168,-1156.73,0.00010958,2]
[352223970,1739008235177,-500.0,0.00010958,2]
[352223971,1739008235187,-500.0,0.00010958,2]
[352223972,1739008235195,-338.00542148,0.00010958,2]
[352223973,1739008235204,-308.47284582,0.00010958,2]
[352223974,1739008235213,-500.0,0.00010958,2]
[352223975,1739008235222,-501.71078274,0.00010958,2]
[352223976,1739008235231,-500.0,0.00010958,2]
[352223977,1739008235240,-500.0,0.00010958,2]
[352223978,1739008235248,-500.0,0.00010958,2]
[352223979,1739008235257,-500.0,0.00010958,2]
[352223980,1739008235266,-500.0,0.00010958,2]
[352223981,1739008235275,-500.0,0.00010958,2]
[352223982,1739008235284,-1381.01,0.00010958,2]
[352223983,1739008235293,-500.0,0.00010958,2]
[352223984,1739008235302,-500.0,0.00010958,2]
[352223985,1739008235311,-500.0,0.00010958,2]
[352223986,1739008235320,-500.0,0.00010958,2]
[352223987,1739008235329,-500.0,0.00010958,2]
[352223988,1739008235338,-458.54865058,0.00010958,2]
[352223989,1739008235346,-500.0,0.00010958,2]
[352223990,1739008235355,-4150.59,0.00010958,2]
[352223991,1739008235364,-500.0,0.00010958,2]
[352223992,1739008235373,-500.0,0.00010958,2]
[352223993,1739008235382,-500.0,0.00010958,2]
[352223994,1739008235391,-500.0,0.00010958,2]
[352223995,1739008235400,-500.0,0.00010958,2]
[352223996,1739008235409,-500.0,0.00010958,2]
[352223997,1739008235418,-685.16,0.00010958,2]
[352223998,1739008235427,-500.0,0.00010958,2]
[352223999,1739008235438,-500.0,0.00010958,2]
[352224000,1739008235447,-5647.62,0.00010958,2]
[352224001,1739008235456,-1207.49,0.00010958,2]
[352224002,1739008235465,-500.0,0.00010958,2]
[352224003,1739008235474,-500.0,0.00010958,2]
[352224004,1739008235483,-500.0,0.00010958,2]
[352224005,1739008235492,-2102.51,0.00010958,2]
[352224006,1739008235501,-1597.94,0.00010958,2]
[352224007,1739008235510,-1597.94,0.00010958,2]
[352224008,1739008235519,-500.0,0.00010958,2]
[352224009,1739008235528,-1597.94,0.00010958,2]
[352224010,1739008235537,-1597.94,0.00010958,2]
[352224011,1739008235546,-1597.94,0.00010958,2]
[352224012,1739008235555,-500.0,0.00010958,2]
[352224013,1739008235564,-1597.94,0.00010958,2]
[352224014,1739008235573,-1676.9,0.00010958,2]
[352224015,1739008235582,-16657.69,0.00010958,2]
[352224016,1739008235592,-500.0,0.00010958,2]
[352224017,1739008235601,-1456.45,0.00010958,2]
[352224018,1739008235610,-500.0,0.00010958,2]
[352224019,1739008235619,-500.0,0.00010958,2]
[352224020,1739008235628,-500.0,0.00010958,2]
[352224021,1739008235637,-528.05960842,0.00010958,2]
[352224022,1739008235646,-500.0,0.00010958,2]
[352224023,1739008235655,-500.0,0.00010958,2]
[352224024,1739008235664,-504.56818694,0.00010958,2]
[352224025,1739008235673,-500.0,0.00010958,2]
[352224026,1739008235684,-49622.88,0.00010958,2]
[352224027,1739008235695,-500.0,0.00010958,2]
[352224028,1739008235705,-500.0,0.00010958,2]
[352224029,1739008235715,-500.0,0.00010958,2]
[352224030,1739008235725,-2027.9,0.00010958,2]
[352224031,1739008235734,-523.50836409,0.00010958,2]
[352224032,1739008235743,-500.0,0.00010958,2]
[352224033,1739008235753,-500.0,0.00010958,2]
[352224034,1739008235762,-500.0,0.00010958,2]
[352224035,1739008235771,-500.0,0.00010958,2]
[352224036,1739008235781,-345.91555094,0.00010958,2]
[352224037,1739008235790,-1454.71,0.00010958,2]
[352224038,1739008235799,-500.0,0.00010958,2]
[352224039,1739008235809,-500.0,0.00010958,2]
[352224040,1739008235818,-500.0,0.00010958,2]
[352224041,1739008235827,-287.81413658,0.00010958,2]
[352224042,1739008235836,-2194.61,0.00010958,2]
[352224043,1739008235846,-500.0,0.00010958,2]
[352224044,1739008235855,-500.0,0.00010958,2]
[352224045,1739008235864,-500.0,0.00010958,2]
[352224046,1739008235873,-1459.27,0.00010958,2]
[352224047,1739008235882,-500.0,0.00010958,2]
[352224048,1739008235891,-500.0,0.00010958,2]
[352224049,1739008235900,-500.0,0.00010958,2]
[352224050,1739008235908,-500.0,0.00010958,2]
[352224051,1739008235918,-500.0,0.00010958,2]
[352224052,1739008235928,-500.0,0.00010958,2]
[352224053,1739008235937,-500.0,0.00010958,2]
[352224054,1739008235946,-968.03,0.00010958,2]
[352224055,1739008235956,-500.0,0.00010958,2]
[352224056,1739008235965,-500.0,0.00010958,2]
[352224057,1739008235975,-1278.14,0.00010958,2]
[352224058,1739008235985,-500.0,0.00010958,2]
[352224059,1739008235994,-500.0,0.00010958,2]
[352224060,1739008236003,-1960.89,0.00010958,2]
[352224061,1739008236012,-500.0,0.00010958,2]
[352224062,1739008236022,-551.77,0.00010958,2]
[352224063,1739008236031,-537.32,0.00010958,2]
[352224064,1739008236040,-505.53283008,0.00010958,2]
[352224065,1739008236049,-500.0,0.00010958,2]
[352224066,1739008236059,-500.0,0.00010958,2]
[352224067,1739008236067,-500.0,0.00010958,2]
[352224068,1739008236077,-500.0,0.00010958,2]
[352224069,1739008236088,-500.0,0.00010958,2]
[352224070,1739008236097,-500.0,0.00010958,2]
[352224071,1739008236107,-500.0,0.00010958,2]
[352224072,1739008236115,-500.0,0.00010958,2]
[352224073,1739008236124,-250.23317765,0.00010958,2]
[352224074,1739008236134,-2537.01,0.00010958,2]
[352224075,1739008236143,-673.12,0.00010958,2]
[352224076,1739008236153,-500.0,0.00010958,2]
[352224077,1739008236164,-9107.0,0.00010958,2]
[352224078,1739008236174,-500.0,0.00010958,2]
[352224079,1739008236183,-2937.07,0.00010958,2]
[352224080,1739008236193,-500.0,0.00010958,2]
[352224081,1739008236203,-503.93643847,0.00010958,2]
[352224082,1739008236213,-500.0,0.00010958,2]
[352224083,1739008236223,-500.0,0.00010958,2]
[352224084,1739008236233,-509.39700835,0.00010958,2]
[352224085,1739008236243,-500.0,0.00010958,2]
[352224086,1739008236253,-500.0,0.00010958,2]
[352224087,1739008236261,-502.0872496,0.00010958,2]
[352224088,1739008236270,-200.2267951,0.00010958,2]
[352224089,1739008236280,-3611.62,0.00010958,2]
[352224090,1739008236291,-500.0,0.00010958,2]
[352224091,1739008236299,-500.0,0.00010958,2]
[352224092,1739008236309,-534.59254846,0.00010958,2]
[352224093,1739008236318,-685.36,0.00010958,2]
[352224094,1739008236327,-500.0,0.00010958,2]
[352224095,1739008236337,-1670.54,0.00010958,2]
[352224096,1739008236347,-500.0,0.00010958,2]
[352224097,1739008236357,-500.0,0.00010958,2]
[352224098,1739008236366,-500.0,0.00010958,2]
[352224099,1739008236376,-500.0,0.00010958,2]
[352224100,1739008236386,-500.0,0.00010958,2]
[352224101,1739008236395,-1038.43,0.00010958,2]
[352224102,1739008236404,-686.96,0.00010958,2]
[352224103,1739008236413,-500.0,0.00010958,2]
[352224104,1739008236422,-500.0,0.00010958,2]
[352224105,1739008236431,-500.0,0.00010958,2]
[352224106,1739008236441,-1911.51,0.00010958,2]
[352224107,1739008236449,-5231.18,0.00010958,2]
[352224108,1739008236458,-500.0,0.00010958,2]
[352224109,1739008236467,-4458.27,0.00010958,2]
[352224110,1739008236476,-500.0,0.00010958,2]
[352224111,1739008236485,-512.66205982,0.00010958,2]
[352224112,1739008236494,-353.57322542,0.00010958,2]
[352224113,1739008236503,-500.0,0.00010958,2]
[352224114,1739008236637,-500.0,0.00010958,2]
[352224115,1739008236647,-902.36,0.00010958,2]
[352224116,1739008236656,-500.0,0.00010958,2]
[352224117,1739008236665,-500.0,0.00010958,2]
[352224118,1739008236674,-500.0,0.00010958,2]
[352224119,1739008236685,-1512.53,0.00010958,2]
[352224120,1739008236695,-502.71699891,0.00010958,2]
[352224121,1739008236705,-500.0,0.00010958,2]
[352224122,1739008236714,-500.0,0.00010958,2]
[352224123,1739008236723,-500.0,0.00010958,2]
[352224124,1739008236732,-500.0,0.00010958,2]
[352224125,1739008236743,-500.0,0.00010958,2]
[352224126,1739008236754,-500.0,0.00010958,2]
[352224127,1739008236764,-1842.68,0.00010958,2]
[352224128,1739008236773,-500.0,0.00010958,2]
[352224129,1739008236783,-500.0,0.00010958,2]
[352224130,1739008236793,-1326.97,0.00010958,2]
[352224131,1739008236803,-500.0,0.00010958,2]
[352224132,1739008236812,-722.25,0.00010958,2]
[352224133,1739008236822,-500.0,0.00010958,2]
[352224134,1739008236831,-934.01,0.00010958,2]
[352224135,1739008236840,-500.0,0.00010958,2]
[352224136,1739008236849,-644.84140235,0.00010958,2]
[352224137,1739008236859,-500.0,0.00010958,2]
[352224138,1739008236868,-500.0,0.00010958,2]
[352224139,1739008236877,-246.51,0.00010959,2]
[352224140,1739008236887,-2149.25969917,0.00010995,2]
[352224141,1739008236896,-151.0,0.00011,2]
[352224142,1739008236905,-151.0,0.00011,2]
[352224143,1739008236915,-500.0,0.00011094,2]
[352224144,1739008236924,-500.0,0.00011094,2]
[352224145,1739008236934,-500.0,0.00011094,2]
[352224146,1739008236943,-500.0,0.00011094,2]
[352224147,1739008236952,-500.0,0.00011094,2]
[352224148,1739008236961,-500.0,0.00011094,2]
[352224149,1739008236972,-500.0,0.00011094,2]
[352224150,1739008236981,-1597.94,0.00011094,2]
[352224151,1739008236990,-1597.94,0.00011094,2]
[352224152,1739008236999,-1597.94,0.00011094,2]
[352224153,1739008237008,-1597.94,0.00011094,2]
[352224154,1739008237017,-1597.94,0.00011094,2]
[352224155,1739008237026,-1597.94,0.00011094,2]
[352224156,1739008237036,-1597.94,0.00011094,2]
[352224157,1739008237045,-171.04240597,0.00011095,2]
[352224158,1739008237054,-500.0,0.00011095,2]
[352224159,1739008237063,-500.0,0.00011095,2]
[352224160,1739008237073,-500.0,0.00011095,2]
[352224161,1739008237081,-621.5,0.00011095,2]
[352224162,1739008237091,-500.0,0.00011095,2]
[352224163,1739008237100,-500.0,0.00011095,2]
[352224164,1739008237109,-500.0,0.00011095,2]
[352224165,1739008237118,-500.0,0.00011095,2]
[352224166,1739008237128,-500.0,0.00011095,2]
[352224167,1739008237137,-500.0,0.00011095,2]
[352224168,1739008237146,-500.0,0.00011095,2]
[352224169,1739008237155,-500.0,0.00011095,2]
[352224170,1739008237164,-500.0,0.00011095,2]
[352224171,1739008237174,-500.0,0.00011095,2]
[352224172,1739008237184,-500.0,0.00011095,2]
[352224173,1739008237194,-500.0,0.00011095,2]
[352224174,1739008237203,-500.0,0.00011095,2]
[352224175,1739008237212,-509.70000003,0.00011095,2]
[352224176,1739008237221,-500.0,0.00011095,2]
[352224177,1739008237231,-500.0,0.00011095,2]
[352224178,1739008237240,-500.0,0.00011095,2]
[352224179,1739008237250,-500.0,0.00011095,2]
[352224180,1739008237259,-500.0,0.00011095,2]
[352224181,1739008237268,-500.0,0.00011095,2]
[352224182,1739008237277,-500.0,0.00011095,2]
[352224183,1739008237286,-500.0,0.00011095,2]
[352224184,1739008237295,-505.08567262,0.00011095,2]
[352224185,1739008237305,-500.0,0.00011095,2]
[352224186,1739008237314,-500.0,0.00011095,2]
[352224187,1739008237323,-500.0,0.00011095,2]
[352224188,1739008237332,-525.10126798,0.00011095,2]
[352224189,1739008237342,-500.0,0.00011095,2]
[352224190,1739008237351,-500.0,0.00011095,2]
[352224191,1739008237360,-500.0,0.00011095,2]
[352224192,1739008237369,-500.0,0.00011095,2]
[352224193,1739008237379,-500.0,0.00011095,2]
[352224194,1739008237388,-434.76973342,0.00011095,2]
[352224195,1739008237397,-500.0,0.00011095,2]
[352224196,1739008237407,-500.0,0.00011095,2]
[352224197,1739008237416,-500.0,0.00011095,2]
[352224198,1739008237426,-500.0,0.00011095,2]
[352224199,1739008237436,-500.0,0.00011095,2]
[352224200,1739008237445,-500.0,0.00011095,2]
[352224201,1739008237455,-500.0,0.00011095,2]
[352224202,1739008237465,-508.44,0.00011095,2]
[352224203,1739008237475,-500.0,0.00011095,2]
[352224204,1739008237485,-500.0,0.00011095,2]
[352224205,1739008237494,-500.0,0.00011095,2]
[352224206,1739008237503,-500.0,0.00011095,2]
[352224207,1739008237513,-167.93271619,0.00011095,2]
[352224208,1739008237522,-500.0,0.00011095,2]
[352224209,1739008237531,-500.0,0.00011095,2]
[352224210,1739008237540,-871.2,0.00011095,2]
[352224211,1739008237550,-500.0,0.00011095,2]
[352224212,1739008237559,-500.0,0.00011095,2]
[352224213,1739008237569,-500.0,0.00011095,2]
[352224214,1739008237578,-500.0,0.00011095,2]
[352224215,1739008237586,-500.0,0.00011095,2]
[352224216,1739008237595,-500.0,0.00011095,2]
[352224217,1739008237604,-713.53,0.00011095,2]
[352224218,1739008237614,-625.72,0.00011095,2]
[352224219,1739008237623,-828.86,0.00011095,2]
[352224220,1739008237632,-609.74,0.00011095,2]
[352224221,1739008237641,-500.0,0.00011095,2]
[352224222,1739008237650,-500.0,0.00011095,2]
[352224223,1739008237659,-500.0,0.00011095,2]
[352224224,1739008237668,-500.0,0.00011095,2]
[352224225,1739008237678,-500.0,0.00011095,2]
[352224226,1739008237689,-500.0,0.00011095,2]
[352224227,1739008237698,-500.0,0.00011095,2]
[352224228,1739008237707,-557.1208298,0.00011095,2]
[352224229,1739008237717,-500.0,0.00011095,2]
[352224230,1739008237726,-500.0,0.00011095,2]
[352224231,1739008237736,-500.0,0.00011095,2]
[352224232,1739008237746,-500.0,0.00011095,2]
[352224233,1739008237755,-500.0,0.00011095,2]
[352224234,1739008237765,-1113.51,0.00011095,2]
[352224235,1739008237774,-1455.41,0.00011095,2]
[352224236,1739008237785,-500.0,0.00011095,2]
[352224237,1739008237794,-500.0,0.00011095,2]
[352224238,1739008237803,-500.0,0.00011095,2]
[352224239,1739008237812,-697.95,0.00011095,2]
[352224240,1739008237823,-1497.93,0.00011095,2]
[352224241,1739008237832,-500.0,0.00011095,2]
[352224242,1739008237842,-500.0,0.00011095,2]
[352224243,1739008237853,-500.0,0.00011095,2]
[352224244,1739008237864,-500.0,0.00011095,2]
[352224245,1739008237875,-500.0,0.00011095,2]
[352224246,1739008237884,-500.0,0.00011095,2]
[352224247,1739008237892,-500.0,0.00011095,2]
[352224248,1739008237902,-500.0,0.00011095,2]
[352224249,1739008237913,-747.14,0.00011095,2]
[352224250,1739008237923,-500.0,0.00011095,2]
[352224251,1739008237933,-500.0,0.00011095,2]
[352224252,1739008237943,-500.0,0.00011095,2]
[352224253,1739008237952,-500.0,0.00011095,2]
[352224254,1739008237962,-500.0,0.00011095,2]
[352224255,1739008237973,-500.0,0.00011095,2]
[352224256,1739008237984,-500.0,0.00011095,2]
[352224257,1739008237994,-500.0,0.00011095,2]
[352224258,1739008238004,-500.0,0.00011095,2]
[352224259,1739008238013,-1703.07,0.00011095,2]
[352224260,1739008238022,-531.69656928,0.00011095,2]
[352224261,1739008238031,-500.0,0.00011095,2]
[352224262,1739008238041,-500.0,0.00011095,2]
[352224263,1739008238050,-500.0,0.00011095,2]
[352224264,1739008238059,-500.0,0.00011095,2]
[352224265,1739008238068,-500.0,0.00011095,2]
[352224266,1739008238077,-1140.65,0.00011095,2]
[352224268,1739008238086,-500.0,0.00011095,2]
[352224269,1739008238095,-500.0,0.00011095,2]
[352224270,1739008238104,-500.0,0.00011095,2]
[352224271,1739008238113,-500.0,0.00011095,2]
[352224272,1739008238123,-500.0,0.00011095,2]
[352224273,1739008238133,-500.0,0.00011095,2]
[352224274,1739008238142,-500.0,0.00011095,2]
[352224275,1739008238151,-500.0,0.00011095,2]
[352224277,1739008238160,-570.23,0.00011095,2]
[352224278,1739008238169,-500.0,0.00011095,2]
[352224279,1739008238179,-1845.77,0.00011095,2]
[352224280,1739008238188,-500.0,0.00011095,2]
[352224281,1739008238197,-731.19,0.00011095,2]
[352224282,1739008238207,-500.0,0.00011095,2]
[352224283,1739008238216,-776.22,0.00011095,2]
[352224284,1739008238225,-500.0,0.00011095,2]
[352224285,1739008238234,-701.7,0.00011095,2]
[352224286,1739008238243,-500.0,0.00011095,2]
[352224287,1739008238252,-2163.76,0.00011095,2]
[352224288,1739008238261,-500.0,0.00011095,2]
[352224289,1739008238270,-500.0,0.00011095,2]
[352224290,1739008238280,-500.0,0.00011095,2]
[352224291,1739008238289,-500.0,0.00011095,2]
[352224292,1739008238298,-500.0,0.00011095,2]
[352224293,1739008238307,-500.0,0.00011095,2]
[352224294,1739008238316,-1641.21,0.00011095,2]
[352224295,1739008238325,-500.0,0.00011095,2]
[352224296,1739008238334,-500.0,0.00011095,2]
[352224297,1739008238343,-571.68,0.00011095,2]
[352224298,1739008238352,-500.0,0.00011095,2]
[352224299,1739008238362,-3235.64,0.00011095,2]
[352224300,1739008238371,-1371.9,0.00011095,2]
[352224301,1739008238380,-835.5,0.00011095,2]
[352224302,1739008238390,-500.0,0.00011095,2]
[352224303,1739008238399,-500.0,0.00011095,2]
[352224304,1739008238408,-500.0,0.00011095,2]
[352224305,1739008238417,-3348.34,0.00011095,2]
[352224306,1739008238426,-500.0,0.00011095,2]
[352224307,1739008238436,-18903.61,0.00011095,2]
[352224308,1739008238445,-500.0,0.00011095,2]
[352224309,1739008238454,-3475.79,0.00011095,2]
[352224310,1739008238464,-500.0,0.00011095,2]
[352224311,1739008238473,-500.0,0.00011095,2]
[352224312,1739008238483,-782.47,0.00011095,2]
[352224313,1739008238492,-500.0,0.00011095,2]
[352224314,1739008238501,-500.0,0.00011095,2]
[352224315,1739008238510,-513.30374492,0.00011095,2]
[352224316,1739008238519,-500.0,0.00011095,2]
[352224318,1739008238528,-500.0,0.00011095,2]
[352224319,1739008238537,-1156.73,0.00011095,2]
[352224320,1739008238546,-500.0,0.00011095,2]
[352224321,1739008238555,-500.0,0.00011095,2]
[352224322,1739008238565,-500.0,0.00011095,2]
[352224323,1739008238574,-504.50185385,0.00011095,2]
[352224324,1739008238583,-500.0,0.00011095,2]
[352224325,1739008238592,-500.0,0.00011095,2]
[352224326,1739008238602,-500.0,0.00011095,2]
[352224327,1739008238612,-500.0,0.00011095,2]
[352224328,1739008238621,-500.0,0.00011095,2]
[352224329,1739008238630,-1381.01,0.00011095,2]
[352224330,1739008238641,-500.0,0.00011095,2]
[352224331,1739008238652,-500.0,0.00011095,2]
[352224332,1739008238662,-500.0,0.00011095,2]
[352224333,1739008238671,-500.0,0.00011095,2]
[352224334,1739008238681,-500.0,0.00011095,2]
[352224335,1739008238695,-4150.59,0.00011095,2]
[352224336,1739008238704,-500.0,0.00011095,2]
[352224337,1739008238713,-373.88691648,0.00011095,2]
[352224338,1739008238722,-500.0,0.00011095,2]
[352224339,1739008238732,-500.0,0.00011095,2]
[352224340,1739008238743,-500.0,0.00011095,2]
[352224341,1739008238752,-685.16,0.00011095,2]
[352224342,1739008238763,-500.0,0.00011095,2]
[352224343,1739008238772,-5647.62,0.00011095,2]
[352224344,1739008238781,-1207.49,0.00011095,2]
[352224345,1739008238791,-500.0,0.00011095,2]
[352224346,1739008238801,-500.0,0.00011095,2]
[352224347,1739008238811,-2102.51,0.00011095,2]
[352224348,1739008238820,-500.0,0.00011095,2]
[352224349,1739008238830,-500.0,0.00011095,2]
[352224350,1739008238840,-1676.9,0.00011095,2]
[352224351,1739008238849,-16657.69,0.00011095,2]
[352224352,1739008238858,-500.0,0.00011095,2]
[352224353,1739008238868,-1456.45,0.00011095,2]
[352224354,1739008238877,-584.10420234,0.00011095,2]
[352224355,1739008238888,-500.0,0.00011095,2]
[352224356,1739008238898,-500.0,0.00011095,2]
[352224357,1739008238907,-500.0,0.00011095,2]
[352224358,1739008238916,-500.0,0.00011095,2]
[352224359,1739008238925,-49622.88,0.00011095,2]
[352224360,1739008238934,-500.0,0.00011095,2]
[352224361,1739008238944,-500.0,0.00011095,2]
[352224362,1739008238953,-2027.9,0.00011095,2]
[352224363,1739008238963,-500.0,0.00011095,2]
[352224364,1739008238972,-500.0,0.00011095,2]
[352224365,1739008238981,-500.0,0.00011095,2]
[352224366,1739008238990,-1454.71,0.00011095,2]
[352224367,1739008238999,-500.0,0.00011095,2]
[352224368,1739008239008,-500.0,0.00011095,2]
[352224369,1739008239018,-500.0,0.00011095,2]
[352224370,1739008239027,-2194.61,0.00011095,2]
[352224371,1739008239036,-500.0,0.00011095,2]
[352224372,1739008239045,-500.0,0.00011095,2]
[352224373,1739008239055,-500.0,0.00011095,2]
[352224374,1739008239064,-1459.27,0.00011095,2]
[352224375,1739008239073,-500.0,0.00011095,2]
[352224376,1739008239082,-500.0,0.00011095,2]
[352224377,1739008239092,-500.0,0.00011095,2]
[352224378,1739008239102,-512.04073648,0.00011095,2]
[352224379,1739008239111,-500.0,0.00011095,2]
[352224380,1739008239120,-500.0,0.00011095,2]
[352224381,1739008239129,-968.03,0.00011095,2]
[352224382,1739008239139,-500.0,0.00011095,2]
[352224383,1739008239148,-500.0,0.00011095,2]
[352224384,1739008239157,-1278.14,0.00011095,2]
[352224385,1739008239166,-500.0,0.00011095,2]
[352224386,1739008239176,-500.0,0.00011095,2]
[352224387,1739008239185,-1960.89,0.00011095,2]
[352224388,1739008239199,-500.0,0.00011095,2]
[352224389,1739008239208,-551.77,0.00011095,2]
[352224390,1739008239217,-537.32,0.00011095,2]
[352224391,1739008239226,-500.0,0.00011095,2]
[352224392,1739008239236,-312.45948097,0.00011095,2]
[352224393,1739008239246,-629.3695022,0.00011095,2]
[352224394,1739008239255,-500.0,0.00011095,2]
[352224395,1739008239264,-500.0,0.00011095,2]
[352224396,1739008239273,-500.0,0.00011095,2]
[352224397,1739008239282,-2537.01,0.00011095,2]
[352224398,1739008239291,-673.12,0.00011095,2]
[352224399,1739008239300,-9107.0,0.00011095,2]
[352224400,1739008239309,-500.0,0.00011095,2]
[352224401,1739008239318,-2937.07,0.00011095,2]
[352224402,1739008239327,-500.0,0.00011095,2]
[352224403,1739008239336,-500.0,0.00011095,2]
[352224404,1739008239467,-500.0,0.00011095,2]
[352224405,1739008239477,-265.39628712,0.00011095,2]
[352224406,1739008239486,-3611.62,0.00011095,2]
[352224407,1739008239495,-477.20512883,0.00011095,2]
[352224408,1739008239504,-500.0,0.00011095,2]
[352224409,1739008239513,-685.36,0.00011095,2]
[352224410,1739008239522,-1670.54,0.00011095,2]
[352224411,1739008239532,-500.0,0.00011095,2]
[352224412,1739008239541,-500.0,0.00011095,2]
[352224413,1739008239550,-500.0,0.00011095,2]
[352224414,1739008239559,-500.0,0.00011095,2]
[352224415,1739008239568,-1038.43,0.00011095,2]
[352224416,1739008239577,-686.96,0.00011095,2]
[352224417,1739008239587,-500.0,0.00011095,2]
[352224418,1739008239595,-500.0,0.00011095,2]
[352224419,1739008239605,-500.0,0.00011095,2]
[352224420,1739008239615,-1911.51,0.00011095,2]
[352224421,1739008239625,-5231.18,0.00011095,2]
[352224422,1739008239635,-4458.27,0.00011095,2]
[352224423,1739008239644,-500.0,0.00011095,2]
[352224424,1739008239653,-500.0,0.00011095,2]
[352224425,1739008239663,-500.0,0.00011095,2]
[352224426,1739008239673,-902.36,0.00011095,2]
[352224427,1739008239685,-500.0,0.00011095,2]
[352224428,1739008239695,-500.0,0.00011095,2]
[352224429,1739008239703,-1512.53,0.00011095,2]
[352224430,1739008239713,-500.0,0.00011095,2]
[352224431,1739008239722,-500.0,0.00011095,2]
[352224432,1739008239730,-500.0,0.00011095,2]
[352224433,1739008239739,-500.0,0.00011095,2]
[352224434,1739008239748,-172.34410959,0.00011095,2]
[352224435,1739008239757,-500.0,0.00011095,2]
[352224436,1739008239766,-1842.68,0.00011095,2]
[352224437,1739008239775,-500.0,0.00011095,2]
[352224438,1739008239784,-500.0,0.00011095,2]
[352224439,1739008239794,-1326.97,0.00011095,2]
[352224440,1739008239802,-500.0,0.00011095,2]
[352224441,1739008239812,-722.25,0.00011095,2]
[352224442,1739008239821,-500.0,0.00011095,2]
[352224443,1739008239830,-934.01,0.00011095,2]
[352224444,1739008239839,-500.0,0.00011095,2]
[352224445,1739008239849,-592.48171807,0.00011095,2]
[352224446,1739008239858,-151.0,0.000111,2]
[352224447,1739008239868,-151.0,0.000111,2]
[352224448,1739008239877,-151.0,0.000111,2]
[352224449,1739008239887,-151.0,0.000111,2]
[352224450,1739008239897,-151.0,0.000111,2]
[352224451,1739008239906,-2654.18971712,0.00011173,2]
[352224452,1739008239915,-151.0,0.000112,2]
[352224453,1739008239925,-151.0,0.000112,2]
[352224456,1739008239936,-151.0,0.000112,2]
[352224458,1739008239946,-151.0,0.000112,2]
[352224459,1739008239956,-406.90600849,0.00011231,2]
[352224460,1739008239967,-600.0,0.00011231,2]
[352224461,1739008239976,-500.0,0.00011231,2]
[352224463,1739008239985,-500.0,0.00011231,2]
[352224464,1739008239994,-500.0,0.00011231,2]
[352224465,1739008240003,-500.0,0.00011231,2]